[Event "Fall GM-A Norm Invitational 2022"]
[Site "Charlotte"]
[Date "2022.11.20"]
[Round "6"]
[White "Mulyar, Michael"]
[Black "Siddharth, Jagadeesh"]
[Result "1/2-1/2"]
[ECO "D37"]
[WhiteElo "2355"]
[BlackElo "2407"]
[Annotator "TA"]
[PlyCount "45"]
[EventDate "2022.11.18"]
[EventType "tourn"]
[EventCountry "USA"]
[SourceTitle "playchess.com"]
[Source "ChessBase"]
[SourceQuality "1"]
[TimeControl "5400+30"]

{[%evp 11,45,4,10,11,18,23,9,14,22,10,17,0,0,0,0,0,10,5,6,7,6,7,7,8,6,4,11,9,4,5,8,3,3,4,7,0]} 1. d4 {[%emt 0:00:02]} Nf6 {[%emt 0:00:08]} 2. Nf3 {[%emt 0:00:06]} d5 {[%emt 0:00:07]} 3. c4 {[%emt 0:00:10]} e6 {[%emt 0:00:07]} 4. Nc3 {[%emt 0:00:08]} Be7 {[%emt 0:00:06]} 5. Bg5 {[%emt 0:00:31]} h6 {[%emt 0:00:11]} 6. Bh4 {[%emt 0:00:11]} dxc4 {[%emt 0:00:16]} 7. e3 {[%emt 0:00:21] D53: Queen's Gambit Declined: 4 Bg5 Be7: Early deviations.} c5 {[%emt 0:00:07]} 8. Bxc4 {[%emt 0:00:30]} cxd4 {[%emt 0:00:08]} 9. Nxd4 {[%emt 0:01:14] The position is equal.} Bd7 {[%emt 0:00:07]} 10. O-O {[%emt 0:01:03]} Nc6 {[%emt 0:00:06] [#]} 11. Qe2 $146 {[%emt 0:12:04]} ({Predecessor:} 11. Nf3 Qb6 12. Qe2 O-O 13. Rfd1 Rfd8 14. h3 Be8 15. a3 Rxd1+ 16. Rxd1 Rd8 17. Rc1 {0-1 (63) Artemiev,V (2701)-Grischuk,A (2745) Chess.com INT 2022}) 11... Nxd4 {[%emt 0:07:26]} 12. exd4 {[%emt 0:00:10]} O-O {[%emt 0:00:06]} 13. Rad1 {[%emt 0:01:58]} Bc6 {[%emt 0:05:35]} 14. d5 {[%emt 0:12:30]} exd5 {[%emt 0:01:25] [#]} 15. Nxd5 $1 {[%emt 0:01:56]} Bxd5 {[%emt 0:04:43]} 16. Bxf6 {[%emt 0:00:09]} Bxf6 {[%emt 0:00:13]} 17. Rxd5 {[%emt 0:00:24]} Qc7 {[%emt 0:03:39]} 18. b3 {[%emt 0:05:31]} Rad8 {[%emt 0:00:42]} 19. Rfd1 {[%emt 0:01:17]} Rxd5 {[%emt 0:00:28]} 20. Rxd5 {[%emt 0:01:19]} Rd8 {[%emt 0:00:29]} 21. Rxd8+ {[%emt 0:01:10]} Qxd8 {[%emt 0:00:09]} 22. g3 {[%emt 0:00:15]} Qe7 {[%emt 0:01:17]} 23. Qxe7 {[%emt 0:00:05] An interesting draw.  Weighted Error Value: White=0.02 (flawless) /Black=0.02 (flawless)} 1/2-1/2

[Event "Fall GM-A Norm Invitational 2022"]
[Site "Charlotte"]
[Date "2022.11.21"]
[Round "8"]
[White "Preotu, Razvan"]
[Black "Mulyar, Michael"]
[Result "1/2-1/2"]
[ECO "C53"]
[WhiteElo "2493"]
[BlackElo "2355"]
[Annotator "TA"]
[PlyCount "116"]
[EventDate "2022.11.18"]
[EventType "tourn"]
[EventCountry "USA"]
[SourceTitle "playchess.com"]
[Source "ChessBase"]
[SourceQuality "1"]
[TimeControl "5400+30"]

{[%evp 11,116,17,26,25,27,21,23,20,25,8,22,14,14,12,25,14,22,14,22,20,14,22,20,0,0,0,0,0,0,0,20,26,16,31,33,30,15,20,18,20,30,-7,0,-6,-18,-37,-40,-141,0,0,0,0,0,0,0,0,18,11,94,88,80,76,115,118,100,0,0,-79,-73,-77,-40,-40,-43,-46,-40,-39,-40,-39,-40,-40,-35,-254,-23,-30,-23,-23,0,-20,0,-30,-18,-90,-8,-8,-8,-14,-21,-46,-8,-4,-8,-8,0,-8,0,-23,0]} 1. e4 {[%emt 0:00:07]} e5 {[%emt 0:00:05]} 2. Nf3 {[%emt 0:00:11]} Nc6 {[%emt 0:00:08]} 3. Bc4 {[%emt 0:00:20]} Bc5 {[%emt 0:00:10]} 4. c3 {[%emt 0:00:25]} Nf6 {[%emt 0:00:04]} 5. d3 {[%emt 0:00:19]} d6 {[%emt 0:00:13]} 6. O-O {[%emt 0:00:56]} a6 {[%emt 0:00:08]} 7. a4 {[%emt 0:00:14] C54: Giuoco Piano: 4 c3 Nf6, main lines with 5 d4 and 5 d3.} Ba7 {[%emt 0:00:07]} 8. Re1 {[%emt 0:00:06]} h6 {[%emt 0:00:18]} 9. Nbd2 {[%emt 0:00:05] White has an edge.} O-O {[%emt 0:00:06]} 10. h3 {[%emt 0:00:04]} Re8 {[%emt 0:00:19]} 11. b4 $1 {[%emt 0:00:06] 11.b4 is better than 11.Nf1.} Be6 {[%emt 0:00:05]} 12. Bxe6 {[%emt 0:00:03]} Rxe6 {[%emt 0:00:07]} 13. Qc2 {[%emt 0:00:06]} Qd7 {[%emt 0:00:06]} 14. Rb1 {[%emt 0:00:05]} b5 {[%emt 0:00:16]} 15. Ra1 {[%emt 0:00:14]} Rae8 {[%emt 0:00:09] [#]} 16. Nb3 $146 {[%emt 0:00:16]} ({Predecessor:} 16. Nf1 d5 17. Bd2 Bb6 18. Ng3 Rd8 19. a5 Ba7 20. Rac1 dxe4 21. dxe4 Rd6 22. Be3 Bxe3 23. Rxe3 {1-0 (57) Ragger,M (2647)-Wagner,D (2584) Terme Catez 2022}) 16... Bb6 {[%emt 0:01:41]} 17. Bd2 {[%emt 0:00:38]} Nh5 18. Nh4 {[%emt 0:18:40]} Rf6 {[%emt 0:12:40]} 19. Be3 {[%emt 0:00:34]} Nf4 {[%emt 0:01:18][%cal Of4h3] aiming for ...Nxh3+!} 20. Kh2 {[%emt 0:03:43]} d5 {[%emt 0:10:09]} 21. a5 {[%emt 0:02:12]} Bxe3 {[%emt 0:00:12]} 22. fxe3 {[%emt 0:00:08]} Ne6 {[%emt 0:00:07]} 23. exd5 {[%emt 0:15:11]} Qxd5 {[%emt 0:00:05][%cal Oe5e4]} 24. e4 {[%emt 0:00:07]} Qd8 {[%emt 0:01:29]} 25. Nf5 {[%emt 0:00:56]} Ne7 {[%emt 0:01:54]} 26. Ne3 {[%emt 0:00:58]} Qd6 {[%emt 0:00:09]} 27. Ng4 {[%emt 0:09:16]} Rg6 {[%emt 0:00:05]} 28. Rf1 {[%emt 0:00:59]} Rf8 {[%emt 0:03:22]} 29. Ne3 {[%emt 0:04:06] [#]} (29. Rad1 $15) 29... c5 {[%emt 0:01:23]} (29... Nd4 $1 $17 {[%cal Rd4c2][%mdl 512]} 30. Qd1 Nxb3 31. Qxb3 Qxd3) 30. Nf5 $36 {[%emt 0:00:42][%mdl 2048] White has the initiative.} Qc7 {[%emt 0:00:41]} ({Don't do} 30... Nxf5 31. exf5 e4+ 32. Kh1 exd3 33. Qd2 $16) 31. Nh4 {[%emt 0:05:38]} Rg5 {[%emt 0:00:07]} 32. Nxc5 {[%emt 0:00:55]} Nxc5 {[%emt 0:00:07]} 33. bxc5 {[%emt 0:00:03]} Qxc5 {[%emt 0:00:10]} 34. Qb3 {[%emt 0:02:18]} Nc8 {[%emt 0:06:30]} (34... Qd6 $11) 35. Nf3 $16 {[%emt 0:16:55]} Rg6 {[%emt 0:00:10][%cal Bg5g6,Bg6c6,Bc6c4,Bc4d4][%mdl 32] [#]} 36. d4 $1 {[%emt 0:00:11]} exd4 {[%emt 0:00:44]} 37. cxd4 {[%emt 0:00:02]} Qc7+ {[%emt 0:01:08]} 38. Ne5 {[%emt 0:00:13]} (38. e5 $16) 38... Rc6 $1 $11 {[%emt 0:08:37]} 39. Rf3 {[%emt 0:00:09] Prevents Rc3.} (39. Qg3 $11 Rc3 40. Rf3 Rxf3 41. gxf3) 39... Rc4 $1 $17 {[%emt 0:01:05]} 40. Qe3 {[%emt 0:07:15] Threatens to win with Rg3.} f6 {[%emt 0:00:40]} 41. Qf4 {[%emt 0:00:27]} Rxd4 {[%emt 0:00:27]} 42. Rc1 $1 {[%emt 0:00:11]} Qxe5 {[%emt 0:03:39]} 43. Qxe5 {[%emt 0:00:06]} fxe5 {[%emt 0:00:03]} 44. Rxf8+ {[%emt 0:00:07][%mdl 64] Remove Defender} Kxf8 {[%emt 0:00:02]} 45. Rxc8+ $15 {[%emt 0:00:08][%mdl 4096] Endgame KR-KR} Ke7 {[%emt 0:00:05] ...Ra4 is the strong threat.} 46. Rc7+ $2 {[%emt 0:03:12] [#]} ({White has to play} 46. Rc6 $1 $15) 46... Rd7 $2 {[%emt 0:00:22]} ({Black should try} 46... Kd6 $1 $19 {[%cal Rd6c7]} 47. Rxg7 Kc5) 47. Rc6 $11 {[%emt 0:00:06]} Rd6 {[%emt 0:02:04]} 48. Rc7+ {[%emt 0:00:04]} Rd7 {[%emt 0:01:16]} 49. Rc6 {[%emt 0:00:06]} Rd6 {[%emt 0:01:16]} 50. Rc7+ {[%emt 0:00:08]} Kf6 {[%emt 0:00:07]} 51. Rb7 {[%emt 0:03:45]} (51. Kg3 $11) 51... g6 {[%emt 0:00:22]} (51... Rd4 $17 52. Rb6+ Kg5 53. Rxa6 Ra4) 52. h4 {[%emt 0:00:39]} h5 {[%emt 0:00:23]} 53. Kh3 {[%emt 0:01:28]} Rd3+ {[%emt 0:03:33]} 54. g3 {[%emt 0:00:20]} Rd6 {[%emt 0:00:54]} (54... Ke6 $5 {[%cal Re6d6]} 55. Ra7 Rd6 $15) 55. Kg2 {[%emt 0:00:30]} Ke6 {[%emt 0:00:08]} 56. Rg7 {[%emt 0:03:14]} Kf6 {[%emt 0:00:06]} 57. Rb7 {[%emt 0:00:05]} Ke6 {[%emt 0:01:11] White must now prevent ...Rc6.} 58. Rg7 {[%emt 0:00:06]} Kf6 {[%emt 0:00:01] Weighted Error Value: White=0.20 (precise) /Black=0.21 (precise)} (58... b4 $5 {[%cal Rb4b3]}) 1/2-1/2

[Event "Fall GM-A Norm Invitational 2022"]
[Site "Charlotte"]
[Date "2022.11.21"]
[Round "8"]
[White "Mardov, Dimitar"]
[Black "Siddharth, Jagadeesh"]
[Result "0-1"]
[ECO "D37"]
[WhiteElo "2432"]
[BlackElo "2407"]
[Annotator "TA"]
[PlyCount "122"]
[EventDate "2022.11.18"]
[EventType "tourn"]
[EventCountry "USA"]
[SourceTitle "playchess.com"]
[Source "ChessBase"]
[SourceQuality "1"]
[TimeControl "5400+30"]

{[%evp 11,122,11,24,22,35,20,32,0,0,0,0,0,0,-15,-28,-17,-14,-49,-39,-50,-57,-56,-53,-49,-41,-59,0,-37,-36,-71,-75,-120,-53,-79,-63,-105,-89,-114,-86,-113,-110,-145,-150,-145,-101,-97,-116,-104,-105,-94,-90,-100,-100,-100,-100,-97,-75,-73,-65,-70,-71,-70,-67,-127,-127,-127,-120,-132,-155,-173,-173,-173,-131,-131,-137,-185,-178,-158,-36,-39,-40,-47,-53,-45,0,-68,-17,-72,-17,-18,-18,-1091,-592,-3006,-2518,-3317,-2586,-4710,-4553,-4248,-4496,-4529,-3368,-2660,-1622,-3290,-1752,-29963,-29964,-29970,-29971,-29966,-29970]} 1. d4 {[%emt 0:00:05]} Nf6 {[%emt 0:00:08]} 2. Nf3 {[%emt 0:00:36]} d5 {[%emt 0:00:09]} 3. c4 {[%emt 0:00:34]} e6 {[%emt 0:00:05]} 4. Nc3 {[%emt 0:00:34]} Be7 {[%emt 0:00:08]} 5. Bg5 {[%emt 0:02:22]} h6 {[%emt 0:00:08]} 6. Bh4 {[%emt 0:01:12]} dxc4 {[%emt 0:00:08]} 7. e3 {[%emt 0:02:07] D53: Queen's Gambit Declined: 4 Bg5 Be7: Early deviations.} c5 {[%emt 0:00:08]} 8. Bxc4 {[%emt 0:01:29]} cxd4 {[%emt 0:00:11]} 9. exd4 {[%emt 0:18:51] White is slightly better.} Nc6 {[%emt 0:00:30][%cal Bb8c6,Bc6e7,Be7f5][%mdl 32]} 10. O-O O-O 11. Re1 {[%emt 0:01:00]} b6 {[%emt 0:11:20]} 12. Qd2 {[%emt 0:07:53]} Bb7 {[%emt 0:04:29] [#]} (12... Na5 {keeps more tension.} 13. Bd3 Bb7 14. Ne5 Nd5) 13. Bf1 $146 {[%emt 0:04:17]} ({Predecessor:} 13. Rad1 Rc8 14. Qe2 Na5 15. Bd3 Nh5 16. Bxe7 Qxe7 17. Bb1 Nf4 18. Qc2 {0-1 (53) Manin,V (2144)-Bajarani,U (2486) St Petersburg 2017}) 13... Nd5 {[%emt 0:07:38]} 14. Bxe7 {[%emt 0:04:28]} Ncxe7 {[%emt 0:00:07]} 15. Ne5 {[%emt 0:03:57]} Nf5 {[%emt 0:05:03]} 16. Bc4 {[%emt 0:09:55]} Rc8 {[%emt 0:02:54]} 17. Bxd5 {[%emt 0:03:53]} Bxd5 {[%emt 0:00:29]} 18. Rad1 {[%emt 0:02:22]} Qg5 {[%emt 0:12:12]} ({Black should try} 18... Qd6 $15) 19. Qxg5 {[%emt 0:05:17]} hxg5 {[%emt 0:00:11]} 20. Rd2 {[%emt 0:01:45]} Rfd8 {[%emt 0:01:03]} 21. f3 {[%emt 0:05:35]} a6 {[%emt 0:02:02]} (21... f6 $17 22. Ng4 Bb7) 22. Kf2 {[%emt 0:02:13]} b5 {[%emt 0:01:59]} 23. a3 {[%emt 0:00:33][%cal Ba2a3,Ba3a4][%mdl 32]} Bb3 {[%emt 0:02:42]} 24. Re4 {[%emt 0:07:07]} Rc7 {[%emt 0:12:25]} 25. d5 {[%emt 0:06:41]} Bxd5 {[%emt 0:01:26]} ({But not} 25... exd5 $6 26. Rb4 Re8 27. Rxb3 $11) 26. a4 {[%emt 0:02:30]} f6 {[%emt 0:03:23]} 27. Ng4 {[%emt 0:00:36]} Rcd7 {[%emt 0:00:15]} 28. Nxd5 {[%emt 0:01:55]} Rxd5 {[%emt 0:00:09]} 29. Rxd5 {[%emt 0:01:00]} exd5 $17 {[%emt 0:00:02][%mdl 4096] Endgame KRN-KRN} ({Of course not} 29... Rxd5 $6 30. Rxe6 Rd2+ 31. Re2 Rxe2+ 32. Kxe2 $11) 30. Rb4 {[%emt 0:01:37]} bxa4 {[%emt 0:00:57]} 31. Ne3 {[%emt 0:00:48]} Ne7 {[%emt 0:01:54]} 32. Rxa4 {[%emt 0:00:20]} Rb8 {[%emt 0:00:02]} 33. b4 {[%emt 0:01:28]} Rb6 {[%emt 0:01:28]} 34. Ke2 {[%emt 0:00:29]} Kf7 {[%emt 0:01:22]} 35. Kd3 {[%emt 0:00:10]} Ke6 {[%emt 0:00:02]} 36. Nc2 {[%emt 0:00:26]} Nc6 {[%emt 0:00:47]} 37. Nd4+ {[%emt 0:01:15]} (37. Kc3 $15) 37... Nxd4 {[%emt 0:00:39]} 38. Kxd4 {[%emt 0:00:03] KR-KR} Kd6 {[%emt 0:00:06]} 39. h3 {[%emt 0:00:39]} Rc6 {[%emt 0:02:49]} 40. Ra5 {[%emt 0:00:19]} Rc4+ {[%emt 0:00:08]} 41. Ke3 {[%emt 0:00:42]} Rxb4 {[%emt 0:00:25]} 42. Rxa6+ {[%emt 0:00:04]} Ke5 {[%emt 0:00:03]} 43. Ra2 {[%emt 0:01:22]} f5 {[%emt 0:02:21]} 44. Ke2 {[%emt 0:00:42]} f4 {[%emt 0:01:45]} (44... Rb3 $17 {Threatens to win with ...g6.} 45. Kf2 g6) 45. Kd3 $1 $15 {[%emt 0:00:31]} Rb3+ {[%emt 0:00:10]} 46. Ke2 {[%emt 0:00:11]} Re3+ {[%emt 0:02:26]} 47. Kd2 $1 {[%emt 0:00:05]} Rb3 {[%emt 0:01:49]} 48. Ke2 {[%emt 0:00:06]} Kf5 {[%emt 0:00:59] Black is more active.} (48... Rb1 $15) 49. Rc2 {[%emt 0:00:49]} (49. Ra7 $11) 49... d4 {[%emt 0:09:20]} ({Better is} 49... Re3+ $17 50. Kf1 Re6) 50. Rc5+ $11 {[%emt 0:01:38]} Kg6 {[%emt 0:00:01] [#] Strongly threatening ...d3+.} 51. Rc7 $2 {[%emt 0:00:47][%mdl 8192] This costs White the game.} (51. Rd5 $11) 51... Rb2+ {[%emt 0:00:43]} 52. Kd3 {[%emt 0:00:21]} Rxg2 {[%emt 0:01:00]} 53. Rc6+ {[%emt 0:00:41]} Kh5 {[%emt 0:00:25]} 54. Kxd4 {[%emt 0:00:10]} Re2 {[%emt 0:02:50]} 55. Rc7 {[%emt 0:00:24]} Kh6 {[%emt 0:00:01] [#] ...Re3 is the strong threat.} 56. Rc6+ {[%emt 0:00:10]} g6 {[%emt 0:00:01]} 57. Rc3 {[%emt 0:00:40]} Re6 {[%emt 0:00:02]} 58. Ra3 {[%emt 0:01:00]} Kh5 {[%emt 0:01:07] ( -> ...Kh4)} 59. Rb3 {[%emt 0:00:44]} Kh4 {[%emt 0:00:12] Black mates.} 60. Ra3 {[%emt 0:00:29]} Kxh3 {[%emt 0:00:14]} 61. Ra5 {[%emt 0:00:06]} g4 {[%emt 0:00:21] Weighted Error Value: White=0.56/Black=0.25 (precise)} 0-1

[Event "Fall GM-A Norm Invitational 2022"]
[Site "Charlotte"]
[Date "2022.11.21"]
[Round "8"]
[White "Fus, Jakub"]
[Black "Stremavicius, Titas"]
[Result "0-1"]
[ECO "D35"]
[WhiteElo "2427"]
[BlackElo "2527"]
[Annotator "TA"]
[PlyCount "84"]
[EventDate "2022.11.18"]
[EventType "tourn"]
[EventCountry "USA"]
[SourceTitle "playchess.com"]
[Source "ChessBase"]
[SourceQuality "1"]
[TimeControl "5400+30"]

{[%evp 21,84,14,22,21,15,14,18,18,33,14,18,20,17,13,27,27,29,22,23,8,16,16,26,16,25,25,18,14,24,12,14,0,0,2,14,0,0,-14,-16,-22,-26,-65,-66,-68,-56,-63,-58,-69,-44,-45,-45,-45,-45,-157,-169,-184,-139,-447,-437,-382,-365,-1004,-982,-906,-654]} 1. d4 {[%emt 0:00:04]} d5 {[%emt 0:00:17]} 2. c4 {[%emt 0:00:12]} e6 {[%emt 0:00:05]} 3. Nc3 {[%emt 0:00:09]} Nf6 {[%emt 0:00:07]} 4. cxd5 {[%emt 0:00:46]} exd5 {[%emt 0:00:04]} 5. Bg5 {[%emt 0:00:10]} Be7 {[%emt 0:00:10]} 6. e3 {[%emt 0:00:22]} O-O {[%emt 0:00:39]} 7. Bd3 {[%emt 0:00:24]} h6 {[%emt 0:00:15]} 8. Bh4 {[%emt 0:00:39]} c6 {[%emt 0:00:29]} 9. Qc2 {[%emt 0:00:31]} Nbd7 {[%emt 0:00:21]} 10. Nge2 {[%emt 0:00:48]} Re8 {[%emt 0:00:15]} 11. O-O {[%emt 0:01:01]} Nh5 {[%emt 0:00:15]} 12. Bxe7 {[%emt 0:00:11] D36: Queen's Gambit Declined: Exchange Variation: Main line (5 Bg5 c6 6 Qc2).} Qxe7 {[%emt 0:00:07]} 13. Rab1 {[%emt 0:01:18]} a5 {[%emt 0:00:22]} 14. Na4 {[%emt 0:01:59] The position is equal.} Qd6 {[%emt 0:14:38]} 15. Rfc1 {[%emt 0:00:30]} g6 16. a3 {[%emt 0:09:24]} Ng7 {[%emt 0:01:47]} 17. Nf4 {[%emt 0:06:24] [#]} Ne6 $146 {[%emt 0:02:50]} ({Predecessor:} 17... h5 18. h4 Ne6 19. Re1 b5 20. Nc3 Kg7 21. Nxe6+ Rxe6 22. Ne2 Nb6 23. Nf4 Rf6 {½-½ (40) Gonzaga Grego,L (2405)-Betker,J (2438) GER email 2017}) 18. Nxe6 {[%emt 0:05:43]} Rxe6 {[%emt 0:08:20]} 19. h3 {[%emt 0:12:05]} Kg7 {[%emt 0:02:11]} 20. Qd1 {[%emt 0:06:24]} Re7 {[%emt 0:03:41]} 21. Rc3 {[%emt 0:02:45]} Qb8 {[%emt 0:05:13]} 22. Qc2 {[%emt 0:07:19]} Qa7 {[%emt 0:02:46]} 23. Nc5 {[%emt 0:05:24]} Nxc5 {[%emt 0:07:46]} 24. dxc5 {[%emt 0:01:11]} Qb8 {[%emt 0:02:03]} 25. Qd2 {[%emt 0:02:32]} Qe5 {[%emt 0:00:57]} 26. Bf1 {[%emt 0:01:16]} Bf5 {[%emt 0:02:18]} 27. Rd1 {[%emt 0:00:13]} h5 {[%emt 0:00:56]} 28. Qd4 {[%emt 0:01:04]} f6 {[%emt 0:02:47]} 29. Rcc1 {[%emt 0:12:00]} g5 {[%emt 0:07:20][%cal Bg6g5,Bg5g4][%mdl 32]} 30. Be2 {[%emt 0:01:51]} Rh8 {[%emt 0:00:42]} 31. Qxe5 {[%emt 0:01:47]} fxe5 {[%emt 0:00:26]} 32. b4 {[%emt 0:00:05]} axb4 {[%emt 0:01:41]} 33. axb4 {[%emt 0:00:04]} g4 {[%emt 0:00:30]} 34. h4 {[%emt 0:01:25]} Ra8 {[%emt 0:01:14]} (34... d4 $5) 35. Ra1 {[%emt 0:00:05] Prevents Ra2.} Rxa1 {[%emt 0:00:57]} 36. Rxa1 $15 {[%emt 0:00:04][%mdl 4096] Endgame KRB-KRB} d4 {[%emt 0:00:07][%cal Bd5d4,Bd4d3][%mdl 32]} 37. Rd1 {[%emt 0:02:17] [#]} (37. Kh2 $15) 37... Rd7 $1 $17 {[%emt 0:03:27] Hoping for ...d3.} 38. Bc4 {[%emt 0:06:30]} Kf6 {[%emt 0:02:50] White must now prevent ...Bc2.} 39. Kf1 $2 {[%emt 0:03:50][%mdl 8192] This move loses the game for White.} (39. Kh2 $17 {is tougher.}) 39... Bc2 $19 {[%emt 0:05:03]} 40. Rd2 {[%emt 0:00:41]} d3 {[%emt 0:00:08]} 41. f3 $2 {[%emt 0:02:15]} (41. b5 e4 42. bxc6 bxc6 43. Kg1) 41... g3 {[%emt 0:04:32][%cal Oe5e4] [#] And now ...e4! would win.} 42. b5 {[%emt 0:03:19]} e4 {[%emt 0:00:30] Weighted Error Value: White=0.35/Black=0.03 (flawless)} 0-1

[Event "Fall GM-A Norm Invitational 2022"]
[Site "Charlotte"]
[Date "2022.11.21"]
[Round "8"]
[White "Kaliksteyn, Alexander"]
[Black "Cordova, Emilio"]
[Result "1/2-1/2"]
[ECO "A46"]
[WhiteElo "2389"]
[BlackElo "2561"]
[Annotator "TA"]
[PlyCount "31"]
[EventDate "2022.11.18"]
[EventType "tourn"]
[EventCountry "USA"]
[SourceTitle "playchess.com"]
[Source "ChessBase"]
[SourceQuality "1"]
[TimeControl "5400+30"]

{[%evp 11,17,8,14,14,14,11,10,8]} 1. d4 {[%emt 0:00:03]} Nf6 {[%emt 0:02:09]} 2. Nf3 {[%emt 0:00:09]} e6 {[%emt 0:00:14]} 3. Bf4 {[%emt 0:00:10]} b6 {[%emt 0:00:07]} 4. e3 {[%emt 0:00:16]} Bb7 {[%emt 0:00:07]} 5. Bd3 {[%emt 0:00:22]} Be7 {[%emt 0:00:09]} 6. h3 {[%emt 0:00:13]} c5 {[%emt 0:00:12] The position is equal.} 7. c3 {[%emt 0:00:22] A47: 1 d4 Nf6 2 Nf3 b6: Torre, London and Colle Systems.} O-O {[%emt 0:00:35]} 8. O-O $1 {[%emt 0:00:08] 8.0-0 scores better than 8.Nbd2.} d6 {[%emt 0:00:57]} 9. Re1 {[%emt 0:01:09] [#] An uneventful encounter.  Weighted Error Value: White=0.02 (flawless) /Black=0.02 (flawless)} {Predecessor:} Nbd7 $146 10. e4 h6 11. Bh2 Rc8 12. a3 Nh7 13. d5 e5 14. a4 c4 15. Bf1 f5 16. exf5 {½-½ (48) Blohberger,F (2503)-Durarbayli,V (2615) Katowice 2021} 1/2-1/2

[Event "Fall GM-A Norm Invitational 2022"]
[Site "Charlotte"]
[Date "2022.11.22"]
[Round "9"]
[White "Cordova, Emilio"]
[Black "Fus, Jakub"]
[Result "1-0"]
[ECO "D02"]
[WhiteElo "2561"]
[BlackElo "2427"]
[Annotator "TA"]
[PlyCount "99"]
[EventDate "2022.11.18"]
[EventType "tourn"]
[EventCountry "USA"]
[SourceTitle "playchess.com"]
[Source "ChessBase"]
[SourceQuality "1"]
[TimeControl "5400+30"]

{[%evp 15,99,0,10,7,12,12,22,22,16,7,-8,-8,20,-2,0,-18,-5,-27,0,-8,0,-60,-69,-65,-58,-58,-70,-74,-59,-72,-52,-50,-37,-86,-33,-58,-41,-65,-63,-62,-61,-68,-22,-26,25,37,254,250,219,253,241,247,401,401,385,137,123,112,382,396,365,376,313,351,330,322,299,253,244,227,313,313,313,299,298,297,320,164,316,313,289,275,1053,991,658,400]} 1. Nf3 {[%emt 0:00:18]} d5 {[%emt 0:00:15]} 2. d4 {[%emt 0:00:18]} Nf6 {[%emt 0:00:29]} 3. c4 {[%emt 0:00:22]} e6 {[%emt 0:00:25]} 4. g3 {[%emt 0:00:41]} Bb4+ {[%emt 0:00:34]} 5. Bd2 {[%emt 0:01:21]} Be7 {[%emt 0:00:16]} 6. Bg2 {[%emt 0:00:18]} Nbd7 {[%emt 0:00:26]} 7. Qc2 {[%emt 0:00:25]} c6 {[%emt 0:00:49]} 8. O-O {[%emt 0:03:24]} O-O {[%emt 0:00:08]} 9. Rc1 {[%emt 0:07:32] E11: Bogo-Indian.} b6 {[%emt 0:03:16]} 10. a4 {[%emt 0:12:39] Nowadays more popular than 10.cxd5.} Ba6 {[%emt 0:02:52]} 11. b3 {[%emt 0:00:57] The position is equal.} c5 {[%emt 0:01:19]} 12. Na3 $5 {[%emt 0:00:23][%mdl 4] An interesting side line.} Bb7 {[%emt 0:02:35] [#]} 13. e3 $146 {[%emt 0:04:44]} ({Predecessor:} 13. a5 dxc4 14. Nxc4 b5 15. Ne3 Bxf3 16. Bxf3 cxd4 17. Nf1 Rc8 18. Qd3 Nc5 19. Qxb5 {1-0 (40) Adrian,C (2315)-Guido,F (2365) Agneaux 1999}) 13... dxc4 {[%emt 0:05:27]} 14. Nxc4 {[%emt 0:00:09]} Rc8 {[%emt 0:02:28]} 15. Qd1 {[%emt 0:05:26]} Rc7 {[%emt 0:03:17]} 16. h3 {[%emt 0:14:25]} Qa8 {[%emt 0:09:11]} 17. a5 {[%emt 0:10:58] Threatens to win with axb6.} b5 {[%emt 0:09:37]} 18. a6 {[%emt 0:00:07]} (18. Nb6 $1 $11 Qe8 19. Nxd7 Qxd7 20. a6) 18... Bd5 $15 {[%emt 0:04:13]} 19. Na3 {[%emt 0:06:13]} Rb8 {[%emt 0:05:35]} 20. Qe2 {[%emt 0:00:07]} b4 {[%emt 0:07:08]} 21. Nc4 {[%emt 0:00:32]} Ne4 {[%emt 0:00:41]} 22. Be1 {[%emt 0:03:27]} Rbc8 {[%emt 0:01:59]} 23. h4 {[%emt 0:00:08]} Bf6 {[%emt 0:05:01]} 24. Ra5 {[%emt 0:06:04]} (24. Ra2 $15) 24... cxd4 {[%emt 0:03:14]} (24... Nb6 $17 25. Nxb6 axb6) 25. exd4 {[%emt 0:00:08]} Nd6 {[%emt 0:07:06]} 26. Bxb4 {[%emt 0:04:17]} Nxc4 {[%emt 0:03:00]} 27. bxc4 {[%emt 0:00:06]} Rxc4 {[%emt 0:00:46]} 28. Rxc4 {[%emt 0:00:06]} Rxc4 {[%emt 0:00:13]} (28... Bxc4 $15 29. Qd1 Bd5) 29. Bd2 $1 $11 {[%emt 0:00:07]} Rc2 {[%emt 0:03:09]} (29... Bxd4 $2 30. Nxd4 Rxd4 31. Bc3 $18) (29... Qc6 $142) 30. Ne1 {[%emt 0:01:23]} Rb2 $2 {[%emt 0:01:46]} (30... Rc8 $14) 31. Bxd5 $18 {[%emt 0:01:09]} exd5 {[%emt 0:00:04]} 32. Rb5 $1 {[%emt 0:02:22]} Rxb5 {[%emt 0:01:12]} 33. Qxb5 {[%emt 0:00:06]} Nb6 {[%emt 0:00:05]} (33... Qd8 34. Ba5 (34. Qxd5 Nf8 $16) 34... Qc8 35. Qxd5 h6) 34. Ba5 {[%emt 0:00:44]} Nc4 {[%emt 0:02:13]} 35. Nf3 $2 {[%emt 0:00:36]} (35. Qb7 $1 $18 {[%cal Rb7a8] and the rest is easy.} Qe8 36. Bb4) 35... Nxa5 $16 {[%emt 0:02:13]} 36. Qxa5 {[%emt 0:00:07][%mdl 4096] Endgame KQB-KQN} Qc6 {[%emt 0:01:33][%mdl 8192] Prevents Qb5.} (36... Bd8 $16 37. Qb5 Bb6) 37. Qb4 $1 $18 {[%emt 0:01:03] Intending Qb8+ and mate.} Bd8 {[%emt 0:07:44]} 38. Qb8 {[%emt 0:07:56][%csl LRa7,LRd8]} Qb6 {[%emt 0:01:49] [#]} 39. Qa8 {[%emt 0:00:06]} f6 {[%emt 0:00:12]} 40. Qxd5+ {[%emt 0:00:20]} Kf8 {[%emt 0:00:03]} 41. Nd2 {[%emt 0:01:16]} Be7 {[%emt 0:01:00]} 42. Qc4 {[%emt 0:00:35]} Qb4 {[%emt 0:00:54]} 43. Qc8+ {[%emt 0:01:48]} Kf7 {[%emt 0:00:03]} 44. Nf3 {[%emt 0:00:06]} Qb5 {[%emt 0:01:38]} 45. Kg2 {[%emt 0:00:23]} (45. Qb7 Qxb7 46. axb7 Bd6 $16) 45... Bd6 {[%emt 0:00:18]} 46. g4 {[%emt 0:01:30]} (46. d5 $142 {Black must now prevent Qe6+.} Qe2 47. Qb7+ (47. Qd7+ Qe7 $18) 47... Qe7 48. Nd4 Qxb7 49. axb7) 46... h6 $2 {[%emt 0:01:39] [#]} (46... h5 {keeps fighting.} 47. gxh5 Qxh5) 47. h5 $1 {[%emt 0:00:09]} Bf4 {[%emt 0:00:26]} 48. Qd8 {[%emt 0:03:57] Prevents Qd5. Strongly threatening d5.} Qxa6 $2 {[%emt 0:02:26]} (48... f5 49. Qa8 Qxa6) 49. Qd7+ {[%emt 0:00:06]} Kg8 {[%emt 0:00:04]} 50. Qe8+ {[%emt 0:00:07] Weighted Error Value: White=0.16 (very precise) /Black=0.33} 1-0